bitfinex-derivatives/quotes_ETHF0:USTF0_20230402
["timestamp","ask_amount","ask_price","bid_price","bid_amount"]
[1680403352002,1.97828353,1814.0,1813.9,6.84368059]
[1680403352894,1.97827808,1814.0,1813.9,6.84368059]
[1680403355511,0.822,1814.0,1813.9,6.84368059]
[1680403355713,2.26815219,1814.0,1813.9,6.84368059]
[1680403357110,2.27415219,1814.0,1813.9,6.84368059]
[1680403358708,2.27415219,1814.0,1813.9,6.27084203]
[1680403360307,2.27415219,1814.0,1813.9,6.3241776]
[1680403367019,2.26615219,1814.0,1813.9,6.3241776]
[1680403380732,1.97675169,1814.0,1813.9,7.18993298]
[1680403380923,1.97675169,1814.0,1813.9,6.3241776]
[1680403381235,1.15675169,1814.1,1813.9,10.3579776]
[1680403381434,1.15675169,1814.1,1814.0,0.86694469]
[1680403381735,1.15675169,1814.1,1814.0,1.42014522]
[1680403382833,1.15675169,1814.1,1814.0,0.92014522]
[1680403387431,1.15675169,1814.1,1814.0,0.05320053]
[1680403388233,1.15675169,1814.1,1814.0,0.92014522]
[1680403389543,1.15675169,1814.1,1814.0,3.05320053]
[1680403391637,1.15675169,1814.2,1814.0,3.05320053]
[1680403392853,1.65675169,1814.2,1814.0,3.05320053]
[1680403393146,0.866839,1814.1,1814.0,3.05320053]
[1680403393347,1.366839,1814.1,1814.0,3.05320053]
[1680403393536,0.866839,1814.1,1814.0,3.05320053]
[1680403395038,1.65675169,1814.1,1814.0,3.05320053]
[1680403395244,2.48375169,1814.1,1814.0,3.05320053]
[1680403395450,2.77315219,1814.1,1814.0,3.05320053]
[1680403396037,1.327,1814.1,1814.0,3.05320053]
[1680403399049,0.827,1814.1,1814.0,3.05320053]
[1680403407647,1.98292202,1814.1,1814.0,3.05320053]
[1680403408154,2.27315219,1814.1,1814.0,3.05320053]
[1680403409247,0.827,1814.1,1814.0,3.05320053]
[1680403411249,2.27315219,1814.1,1814.0,3.05320053]
[1680403411754,0.827,1814.1,1814.0,3.05320053]
[1680403413156,2.27315219,1814.1,1814.0,3.05320053]
[1680403418856,1.98311592,1814.1,1814.0,3.05320053]
[1680403424862,2.27315219,1814.1,1814.0,3.05320053]
[1680403425263,0.827,1814.1,1814.0,3.05320053]
[1680403431272,2.27315219,1814.1,1814.0,3.05320053]
[1680403434286,2.95672335,1814.1,1814.0,3.05320053]
[1680403449298,0.69852568,1814.0,1813.7,0.86694469]
[1680403449505,6.30915111,1813.8,1813.6,0.86694469]
[1680403449705,2.47803718,1813.7,1813.6,0.86694469]
[1680403450201,2.54888433,1813.7,1813.6,0.86694469]
[1680403450703,1.39184715,1813.7,1813.6,0.86694469]
[1680403451300,0.89184715,1813.7,1813.6,0.86694469]
[1680403452505,1.75879517,1813.7,1813.5,0.86694469]
[1680403452801,1.40196531,1813.6,1813.5,0.86694469]
[1680403460512,0.824,1813.6,1813.5,0.86694469]
[1680403465119,0.89494317,1813.6,1813.5,0.86694469]
[1680403468325,0.89494317,1813.6,1813.5,1.4441865]
[1680403468822,0.89494317,1813.6,1813.5,1.9441865]
[1680403471024,0.89494317,1813.6,1813.5,1.36694469]
[1680403475120,0.89594317,1813.6,1813.5,0.86694469]
[1680403476123,0.89594317,1813.6,1813.5,1.36694469]
[1680403476423,0.89594317,1813.6,1813.5,0.86694469]
[1680403476725,0.07094317,1813.6,1813.5,1.36694469]
[1680403477219,1.40496531,1813.7,1813.5,1.36694469]
[1680403477418,2.27191333,1813.7,1813.6,0.5768557]
[1680403477712,2.27191333,1813.7,1813.6,1.0768557]
[1680403478123,1.40496531,1813.7,1813.6,1.0768557]
[1680403479223,1.40496531,1813.7,1813.6,0.5768557]
[1680403480222,2.3322708,1813.7,1813.6,0.5768557]
[1680403483132,1.75430549,1813.7,1813.6,1.44380039]
[1680403483331,1.69394802,1813.7,1813.6,1.44380039]
[1680403485229,1.69394802,1813.7,1813.6,0.86694469]
[1680403486930,0.86694802,1813.7,1813.6,0.86694469]
[1680403487128,1.69494802,1813.7,1813.6,0.86694469]
[1680403489737,1.69494802,1813.7,1813.6,1.44419038]
[1680403490635,1.69494802,1813.7,1813.6,0.86694469]
[1680403492439,0.828,1813.7,1813.6,0.86694469]
[1680403494534,1.98503718,1813.7,1813.5,1.15676784]
[1680403494733,0.86792171,1813.6,1813.5,1.15676784]
[1680403497641,0.86792171,1813.6,1813.5,1.43873038]
[1680403497844,1.44652021,1813.6,1813.5,1.93873038]
[1680403499440,0.86792171,1813.6,1813.4,5.14653038]
[1680403499743,0.86792171,1813.6,1813.5,1.65557189]
[1680403500646,0.86792171,1813.6,1813.5,1.15557189]
[1680403502740,1.98503718,1813.7,1813.5,1.15557189]
[1680403503045,1.98503718,1813.7,1813.6,0.86663489]
[1680403504647,3.31103718,1813.7,1813.6,0.86663489]
[1680403505046,2.154,1813.7,1813.6,0.86663489]
[1680403505945,3.31112751,1813.7,1813.6,0.86663489]
[1680403506448,3.38175915,1813.7,1813.6,0.86663489]
[1680403506951,2.55375915,1813.7,1813.6,0.86663489]
[1680403507948,2.84298275,1813.7,1813.6,0.57783053]
[1680403510844,21.65406623,1813.7,1813.4,0.57785225]
[1680403511059,21.65406623,1813.7,1813.2,1.15557189]
[1680403511060,5.6878,1813.5,1813.2,1.44463062]
[1680403511247,5.6878,1813.5,1813.2,0.57785225]
[1680403511248,5.18979541,1813.3,1813.2,0.57785225]
[1680403511454,6.00979541,1813.3,1813.2,0.57785225]
[1680403511750,6.50979541,1813.3,1813.2,0.57785225]
[1680403512653,5.3528,1813.3,1813.1,0.57785225]
[1680403512855,2.27264732,1813.2,1813.1,0.57785225]
[1680403513751,1.40585893,1813.2,1813.1,0.57785225]
[1680403513950,1.40585893,1813.2,1813.1,1.44463062]
[1680403514247,1.40585893,1813.2,1813.1,0.57785225]
[1680403516458,1.40585893,1813.2,1813.0,0.57785225]
[1680403516649,1.40285893,1813.2,1813.0,0.57785225]
[1680403516951,0.825,1813.2,1813.0,0.57785225]
[1680403517355,0.825,1813.2,1813.1,0.57785225]
[1680403518758,0.825,1813.2,1813.0,0.57785225]
[1680403520352,0.825,1813.2,1813.0,1.44463062]
[1680403520558,0.825,1813.2,1813.0,0.57785225]
[1680403520857,3.2078,1813.1,1813.0,0.57785225]
[1680403523059,3.2078,1813.1,1812.9,0.57785225]
[1680403523752,3.2078,1813.1,1813.0,6.36558358]
[1680403525361,3.34178767,1813.1,1813.0,6.36558358]
[1680403527061,4.16878767,1813.1,1813.0,6.36558358]
[1680403528162,0.96098767,1813.1,1813.0,6.36558358]
[1680403539566,4.16878767,1813.1,1813.0,6.36558358]
[1680403542370,0.96098767,1813.1,1813.0,6.36558358]
[1680403542568,0.96098767,1813.1,1813.0,6.94343583]
[1680403546376,0.96098767,1813.1,1813.0,7.8102142]
[1680403547677,0.96098767,1813.1,1813.0,7.23236195]
[1680403551876,1.5388466,1813.1,1813.0,7.23236195]
[1680403554073,1.5388466,1813.1,1813.0,6.36558358]
[1680403556482,2.40563499,1813.1,1813.0,7.52115547]
[1680403556682,1.82777606,1813.1,1813.0,7.52115547]
[1680403562592,1.82908152,1813.1,1813.0,7.52115547]
[1680403562990,4.16878767,1813.1,1813.0,7.52115547]
[1680403563385,5.03689179,1813.1,1813.0,7.52115547]
[1680403563891,5.03689179,1813.1,1813.0,1.15557189]
[1680403564689,1.82909179,1813.1,1813.0,1.15557189]
[1680403572295,1.00209179,1813.1,1813.0,1.93873038]
[1680403572595,0.65053239,1813.1,1813.0,2.76673038]
[1680403572788,0.65053239,1813.1,1813.0,8.51481859]
[1680403573697,0.07178858,1813.1,1813.0,8.51481859]
[1680403574093,0.07178858,1813.1,1813.0,7.07608821]
[1680403574493,0.07178858,1813.1,1813.0,8.52132589]
[1680403578499,0.57874381,1813.6,1813.1,0.5]
[1680403578697,0.57874381,1813.4,1813.3,5.19104725]
[1680403579100,0.57874381,1813.4,1813.3,10.94861166]
[1680403580400,1.44684793,1813.5,1813.3,10.94861166]
[1680403580599,1.44684793,1813.5,1813.4,0.86603642]
[1680403580798,1.44684793,1813.5,1813.4,1.36603642]
[1680403580993,1.44684793,1813.5,1813.4,7.38688137]
[1680403582505,0.57874381,1813.5,1813.4,7.0980338]
[1680403583708,0.57874381,1813.5,1813.4,7.96407022]
[1680403583900,0.57874381,1813.5,1813.4,7.38688137]
[1680403584500,0.57874381,1813.5,1813.4,7.09784845]
[1680403585803,0.57874381,1813.5,1813.4,6.59784845]
[1680403586108,1.40274381,1813.5,1813.4,6.59784845]
[1680403588404,0.824,1813.5,1813.4,6.59784845]
[1680403590803,0.824,1813.5,1813.4,0.5770035]
[1680403594214,1.40274381,1813.5,1813.4,0.5770035]
[1680403594418,1.40274381,1813.5,1813.3,1.44303992]
[1680403594807,1.40274381,1813.5,1813.3,0.5770035]
[1680403595218,0.825,1813.4,1813.3,0.5770035]
[1680403599009,0.825,1813.4,1813.3,1.44303992]
[1680403599813,0.825,1813.4,1813.3,0.5770035]
[1680403600116,0.825,1813.4,1813.3,1.44303992]
[1680403600618,0.825,1813.4,1813.3,0.86603642]
[1680403604418,0.825,1813.4,1813.3,1.36603642]
[1680403605119,0.825,1813.4,1813.3,0.86603642]
[1680403607630,0.825,1813.4,1813.3,1.36603642]
[1680403612526,0.825,1813.4,1813.3,0.5]
[1680403612931,0.825,1813.4,1813.3,1.65524725]
[1680403614421,0.825,1813.4,1813.3,1.15524725]
[1680403614826,0.825,1813.4,1813.3,1.65524725]
[1680403616923,2.27384793,1813.5,1813.3,1.65524725]
[1680403617129,2.27384793,1813.5,1813.4,0.86623869]
[1680403617330,2.27384793,1813.5,1813.4,1.36623869]
[1680403617531,1.40574381,1813.5,1813.4,1.36623869]
[1680403618029,1.40574381,1813.5,1813.4,0.86623869]
[1680403618434,1.69510412,1813.5,1813.3,1.65524725]
[1680403618635,0.57820903,1813.4,1813.3,1.65524725]
[1680403620337,0.57820903,1813.4,1813.3,0.5]
[1680403620544,0.57820903,1813.4,1813.2,5.97985906]
[1680403621150,0.57820903,1813.4,1813.3,6.30632666]
[1680403621340,0.57820903,1813.4,1813.3,6.80632666]
[1680403622447,0.57820903,1813.4,1813.3,8.25038572]
[1680403623444,0.57820903,1813.4,1813.3,7.75038572]
[1680403624348,1.44631315,1813.4,1813.3,6.30632666]
[1680403625247,0.86810412,1813.4,1813.3,7.46242654]
[1680403627045,1.69610412,1813.4,1813.3,7.46242654]
[1680403627255,2.27467536,1813.4,1813.3,6.30632666]
[1680403627550,1.69610412,1813.4,1813.3,6.30632666]
[1680403628140,1.69610412,1813.4,1813.3,7.46239869]
[1680403633549,1.98499541,1813.4,1813.3,0.86715301]
[1680403633753,2.54322407,1813.4,1813.3,0.86715301]
[1680403635260,2.04322407,1813.4,1813.3,0.57798794]
[1680403641367,0.88622866,1813.4,1813.3,0.57798794]
[1680403642662,1.75330139,1813.4,1813.3,0.57798794]
[1680403643363,0.88622866,1813.4,1813.3,0.57798794]
[1680403643562,1.7532631,1813.4,1813.3,0.57798794]
[1680403645869,1.75321144,1813.4,1813.3,0.57798794]
[1680403646967,0.92521144,1813.4,1813.3,1.07798794]
[1680403647261,0.63617204,1813.4,1813.3,1.36715301]
[1680403647659,0.92521144,1813.4,1813.3,1.36715301]
[1680403647864,1.50317242,1813.4,1813.3,1.36715301]
[1680403648063,0.92521144,1813.4,1813.3,1.36715301]
[1680403648463,1.44492662,1813.4,1813.3,1.36715301]
[1680403649371,0.86698278,1813.4,1813.3,1.36715301]
[1680403649566,0.86698278,1813.4,1813.3,0.86715301]
[1680403649966,0.57794484,1813.4,1813.3,1.44460482]
[1680403650162,0.57794484,1813.4,1813.3,0.86715301]
[1680403650870,0.57794196,1813.4,1813.3,0.86715301]
[1680403651071,0.86698278,1813.4,1813.3,0.86715301]
[1680403651373,1.44217335,1813.4,1813.3,1.36715301]
[1680403651572,0.57519057,1813.4,1813.3,1.36715301]
[1680403651766,1.44217335,1813.4,1813.3,1.36715301]
[1680403651962,1.44217335,1813.4,1813.3,0.86715301]
[1680403652373,1.44217335,1813.4,1813.3,4.07495301]
[1680403652573,1.44217335,1813.4,1813.3,0.86715301]
[1680403652574,0.86698278,1813.4,1813.3,0.86715301]
[1680403653072,0.86698278,1813.4,1813.3,1.44461321]
[1680403653273,0.86698278,1813.4,1813.3,0.86715301]
[1680403654375,0.86698278,1813.4,1813.3,4.07495301]
[1680403654875,0.86698278,1813.4,1813.3,0.86715301]
[1680403655276,0.86698278,1813.4,1813.3,4.07495301]
[1680403656671,0.86698278,1813.5,1813.3,4.07495301]
[1680403656872,0.86698278,1813.5,1813.4,0.57745527]
[1680403657073,1.69398278,1813.5,1813.4,0.57745527]
[1680403658176,0.827,1813.5,1813.4,0.57745527]
[1680403658782,1.69402831,1813.5,1813.4,0.57745527]
[1680403658974,0.827,1813.5,1813.4,0.57745527]
[1680403659369,1.69405106,1813.5,1813.4,0.57745527]
[1680403659575,1.69405812,1813.5,1813.4,0.57745527]
[1680403659775,0.827,1813.5,1813.4,0.57745527]
[1680403660383,1.98399541,1813.5,1813.4,0.57745527]
[1680403661689,0.827,1813.5,1813.4,0.57745527]
[1680403662084,1.98399541,1813.5,1813.4,0.57745527]
[1680403663587,0.827,1813.5,1813.4,0.57745527]
[1680403663994,1.98399541,1813.5,1813.4,0.57745527]
[1680403666984,1.98499541,1813.5,1813.4,0.57745527]
[1680403667592,1.98499541,1813.5,1813.3,1.44460828]
[1680403667788,0.86732408,1813.4,1813.3,0.86715301]
[1680403668891,0.8673189,1813.4,1813.3,0.86715301]
[1680403669090,2.48499541,1813.5,1813.3,0.86715301]
[1680403669395,2.48499541,1813.5,1813.4,0.57775476]
[1680403669894,1.98499541,1813.5,1813.4,0.57775476]
[1680403675301,0.828,1813.5,1813.4,0.57775476]
[1680403675501,1.98478474,1813.5,1813.4,0.57775476]
[1680403677397,0.828,1813.5,1813.4,0.57775476]
[1680403677996,1.98486986,1813.5,1813.4,0.57775476]
[1680403678204,0.828,1813.5,1813.4,0.57775476]
[1680403678698,0.825,1813.5,1813.4,0.57775476]
[1680403678905,1.1568594,1813.5,1813.4,1.69315301]
[1680403679401,1.1568594,1813.5,1813.4,1.68603831]
[1680403679609,1.1568594,1813.5,1813.4,2.26389283]
[1680403679798,1.1568594,1813.5,1813.4,1.68603831]
[1680403683405,1.9778594,1813.5,1813.4,0.86003831]
[1680403684304,1.641,1813.5,1813.4,0.57791604]
[1680403684509,6.29504427,1813.5,1813.4,0.57791604]
[1680403686805,1.641,1813.5,1813.4,0.57791604]
[1680403687201,3.08724427,1813.5,1813.4,0.57791604]
[1680403687403,1.641,1813.5,1813.4,0.57791604]
[1680403688007,3.08724427,1813.5,1813.4,0.57791604]
[1680403688600,1.641,1813.5,1813.4,0.57791604]
[1680403688999,3.08724427,1813.5,1813.4,0.57791604]
[1680403695112,2.79813334,1813.5,1813.4,0.57791604]
[1680403695312,2.79812495,1813.5,1813.4,0.57791604]
[1680403696211,2.79812607,1813.5,1813.4,0.57791604]
[1680403696412,2.79812597,1813.5,1813.4,0.57791604]
[1680403696617,1.641,1813.5,1813.4,0.57791604]
[1680403699612,2.79813979,1813.5,1813.4,0.57791604]
[1680403700715,1.641,1813.5,1813.4,0.57791604]
[1680403701218,3.08724427,1813.5,1813.4,0.57791604]
[1680403705914,2.79822311,1813.5,1813.3,1.15607203]
[1680403706223,1.98422311,1813.4,1813.3,1.15607203]
[1680403706415,0.827,1813.4,1813.3,1.15607203]
[1680403706614,0.86790056,1813.4,1813.3,1.15607203]
[1680403706828,0.86790056,1813.4,1813.3,1.65607203]
[1680403711344,0.86790056,1813.4,1813.3,1.15607203]
[1680403713238,0.86790056,1813.5,1813.3,0.5]
[1680403713435,0.86790056,1813.5,1813.4,3.2078]
[1680403736456,0.86790056,1813.5,1813.3,1.15576493]
[1680403737164,0.86790056,1813.4,1813.3,1.15576493]
[1680403737656,1.69590056,1813.5,1813.3,1.15576493]
[1680403738056,0.86790056,1813.4,1813.3,1.15576493]
[1680403739260,1.69590056,1813.5,1813.3,1.15576493]
[1680403739453,1.69590056,1813.5,1813.4,0.86683604]
[1680403740260,1.69545184,1813.5,1813.4,0.86683604]
[1680403740455,0.828,1813.5,1813.4,0.86683604]
[1680403740654,1.69548908,1813.5,1813.4,0.86683604]
[1680403740855,0.828,1813.5,1813.4,0.86683604]
[1680403742264,3.31022311,1813.5,1813.4,0.5780022]
[1680403748567,3.30979627,1813.5,1813.4,0.5780022]
[1680403750568,2.153,1813.5,1813.4,0.5780022]
[1680403750767,3.30979904,1813.5,1813.4,0.5780022]
[1680403770285,2.153,1813.5,1813.3,0.5780022]
[1680403770485,1.98454051,1813.4,1813.3,1.44483824]
[1680403770678,1.98454051,1813.4,1813.3,0.5780022]
[1680403770873,1.98454051,1813.4,1813.3,1.44483824]
[1680403772280,1.98454051,1813.4,1813.3,0.5780022]
[1680403772683,1.98454051,1813.4,1813.3,1.44483824]
[1680403773485,1.98454051,1813.4,1813.3,0.86683604]
[1680403773686,1.98454051,1813.4,1813.3,1.4451339]
[1680403774288,1.98454051,1813.4,1813.3,0.86683604]
[1680403774481,1.98454051,1813.4,1813.3,1.44517368]
[1680403774683,1.98454051,1813.4,1813.3,0.86683604]
[1680403774887,1.98454051,1813.4,1813.3,1.44517299]
[1680403775593,1.98454051,1813.4,1813.3,0.86683604]
[1680403775789,1.98454051,1813.4,1813.3,1.44517374]
[1680403775989,1.98454051,1813.4,1813.3,1.44517363]
[1680403776177,1.98454051,1813.4,1813.3,0.86683604]
[1680403776783,1.98454051,1813.4,1813.3,1.44521479]
[1680403778389,1.98454051,1813.4,1813.3,0.86683604]
[1680403780394,2.54226098,1813.4,1813.3,0.57835316]
[1680403784194,2.83196474,1813.4,1813.3,0.57835316]
[1680403784497,2.33196474,1813.4,1813.3,0.57835316]
[1680403788196,0.88572047,1813.4,1813.3,0.57835316]
[1680403788703,2.33196474,1813.4,1813.3,0.57835316]
[1680403790198,0.88572047,1813.4,1813.3,0.57835316]
[1680403796304,2.04259016,1813.4,1813.3,0.57835316]
[1680403796507,0.88572047,1813.4,1813.3,0.57835316]
[1680403797405,2.04259917,1813.4,1813.3,0.57835316]
[1680403797903,2.04259739,1813.4,1813.3,0.57835316]
[1680403798108,0.88572047,1813.4,1813.3,0.57835316]
[1680403809306,2.33196474,1813.4,1813.3,0.57835316]
[1680403809911,0.88572047,1813.4,1813.3,0.57835316]
[1680403811218,2.33196474,1813.4,1813.3,0.57835316]
[1680403811512,2.04280723,1813.4,1813.2,2.02260097]
[1680403811714,1.21480723,1813.4,1813.3,1.44527003]
[1680403812014,2.04280723,1813.4,1813.3,0.86683604]
[1680403836134,2.03880723,1813.4,1813.3,0.86683604]
[1680403843945,1.21480723,1813.4,1813.3,0.86683604]
[1680403853749,1.21480723,1813.4,1813.2,2.47676493]
[1680403853947,0.86796194,1813.3,1813.2,2.47676493]
[1680403854151,0.92998086,1813.3,1813.2,1.97676493]
[1680403855350,0.92998086,1813.3,1813.2,2.47676493]
[1680403856654,0.92998086,1813.3,1813.2,1.97676493]
[1680403857051,0.92998086,1813.3,1813.2,1.98376493]
[1680403859561,0.92998086,1813.3,1813.2,2.48376493]
[1680403861160,0.92998086,1813.3,1813.2,1.98376493]
[1680403861660,0.92998086,1813.3,1813.2,2.48376493]
[1680403861864,0.57861332,1813.3,1813.2,3.59305906]
[1680403862262,0.57861332,1813.3,1813.2,9.87416922]
[1680403866865,0.57861332,1813.3,1813.2,15.39016922]
[1680403868565,0.57861332,1813.3,1813.2,9.37416922]
[1680403868766,0.57861332,1813.3,1813.2,9.08633453]
[1680403868965,0.57861332,1813.3,1813.2,7.93011016]
[1680403869167,0.57861332,1813.3,1813.2,9.08634829]
[1680403870165,0.57861332,1813.3,1813.2,9.08630329]
[1680403870765,0.57861332,1813.3,1813.2,7.93011016]
[1680403870966,0.57861332,1813.3,1813.2,9.08629831]
[1680403871263,0.57861332,1813.3,1813.2,7.93011016]
[1680403871466,0.57861332,1813.3,1813.2,9.08625164]
[1680403872155,0.57861332,1813.3,1813.2,9.08624707]
[1680403872561,0.57861332,1813.3,1813.2,7.93011016]
[1680403873267,0.57861332,1813.3,1813.2,9.08624927]
[1680403873669,0.57861332,1813.3,1813.2,9.08622922]
[1680403874473,0.57861332,1813.3,1813.2,7.93011016]
[1680403874868,0.57861332,1813.3,1813.2,9.08616207]
[1680403875071,0.57861332,1813.3,1813.2,1.15609818]
[1680403875270,1.44657526,1813.3,1813.2,1.15609818]
[1680403875464,1.44657526,1813.3,1813.1,5.97985906]
[1680403875465,0.825,1813.3,1813.1,1.15609818]
[1680403875772,1.49588005,1813.2,1813.1,1.15609818]
[1680403875968,1.4174034,1813.2,1813.1,1.15609818]
[1680403876168,0.9174034,1813.2,1813.1,1.15609818]
[1680403877076,0.62815947,1813.2,1813.1,1.15609818]
[1680403878471,0.62815947,1813.2,1813.1,3.2078]
[1680403878669,0.62815947,1813.2,1813.1,3.7078]
[1680403879572,0.62815947,1813.2,1813.1,5.15185906]
[1680403880375,0.62815947,1813.2,1813.1,4.65185906]
[1680403883775,0.62815947,1813.2,1813.1,3.2078]
[1680403883979,0.62815947,1813.2,1813.1,4.65185906]
[1680403884677,0.62815947,1813.2,1813.1,5.47985906]
[1680403884975,0.57847104,1813.3,1813.1,5.47985906]
[1680403885176,0.57847104,1813.3,1813.2,1.656424]
[1680403887071,0.57847104,1813.3,1813.2,2.477424]
[1680403887475,0.62726685,1813.3,1813.2,2.477424]
[1680403889475,0.62726685,1813.3,1813.2,2.76505906]
[1680403895084,0.62726685,1813.3,1813.2,7.36613007]
[1680403895581,0.62726685,1813.3,1813.2,6.86613007]
[1680403896085,0.62726685,1813.3,1813.2,8.31018913]
[1680403896991,0.62726685,1813.3,1813.2,6.87313007]
[1680403897574,0.62726685,1813.3,1813.2,8.31718913]
[1680403898085,0.62726685,1813.3,1813.2,6.87313007]
[1680403898779,0.62726685,1813.3,1813.2,8.02960262]
[1680403898983,0.62726685,1813.3,1813.2,8.31718913]
[1680403899376,0.62726685,1813.3,1813.2,6.87313007]
[1680403899575,0.62726685,1813.3,1813.2,8.31718913]
[1680403901491,0.57847104,1813.3,1813.2,8.31718913]
[1680403901887,0.57847104,1813.3,1813.2,6.87313007]
[1680403902189,0.57847104,1813.3,1813.2,8.31718913]
[1680403902983,0.57847104,1813.3,1813.2,6.87313007]
[1680403903183,0.57847104,1813.3,1813.2,8.31718913]
[1680403903786,0.57847104,1813.3,1813.2,8.02997681]
[1680403906995,0.57847104,1813.3,1813.2,7.20197681]
[1680403907192,1.44618601,1813.3,1813.2,7.20197681]
[1680403907393,0.57847104,1813.3,1813.2,7.20197681]
[1680403909897,1.44618601,1813.3,1813.2,1.15684674]
[1680403910098,0.86771497,1813.3,1813.2,1.15684674]
[1680403911290,0.86771497,1813.3,1813.1,1.98384674]
[1680403911491,0.57838244,1813.2,1813.1,5.19164674]
[1680403912397,0.57838244,1813.2,1813.1,4.0348]
[1680403912596,0.57838244,1813.2,1813.1,5.19167229]
[1680403913296,0.57838244,1813.2,1813.1,5.47885906]
[1680403914097,0.57838244,1813.2,1813.1,4.0348]
[1680403914593,0.57838244,1813.2,1813.1,5.47885906]
[1680403915099,0.57838244,1813.2,1813.1,5.19166937]
[1680403915396,0.57838244,1813.2,1813.1,4.0348]
[1680403916299,0.57838244,1813.2,1813.1,5.19164639]
[1680403916500,0.57838244,1813.2,1813.1,4.0348]
[1680403916899,0.57838244,1813.2,1813.1,5.19164411]
[1680403917096,0.57838244,1813.2,1813.1,4.36464411]
[1680403917302,0.57838244,1813.2,1813.1,4.36464974]
[1680403917797,0.57838244,1813.2,1813.1,3.2078]
[1680403921108,2.26609741,1813.3,1813.1,4.65185906]
[1680403921305,1.68771497,1813.3,1813.2,1.15677561]
[1680403922008,2.26608283,1813.3,1813.2,1.15677561]
[1680403922214,1.68771497,1813.3,1813.2,1.15677561]
[1680403922407,2.26608267,1813.3,1813.2,1.15677561]
[1680403923104,1.68771497,1813.3,1813.2,1.15677561]
[1680403931921,0.86771497,1813.3,1813.2,2.48477561]
[1680403932525,1.44611197,1813.3,1813.2,2.48477561]
[1680403932726,0.578397,1813.3,1813.2,2.48477561]
[1680403933027,0.578397,1813.3,1813.2,2.48477321]
[1680403936529,0.578397,1813.3,1813.2,1.98477321]
[1680403936731,0.578397,1813.3,1813.2,0.828]
[1680403936925,0.578397,1813.3,1813.1,5.47785906]
[1680403937531,0.578397,1813.3,1813.2,1.15678518]
[1680403937730,0.578397,1813.3,1813.2,7.74049109]
[1680403938132,1.44611197,1813.3,1813.2,7.24049109]
[1680403938632,0.578397,1813.3,1813.2,7.24049109]
[1680403939025,0.578397,1813.3,1813.2,7.74049109]
[1680403939622,0.578397,1813.3,1813.2,6.58370591]
[1680403940632,0.578397,1813.3,1813.2,8.02776497]
[1680403946931,0.578397,1813.3,1813.2,13.54376497]
[1680403947138,0.578397,1813.3,1813.2,15.19476497]
[1680403947530,0.578397,1813.3,1813.2,9.67876497]
[1680403947725,0.578397,1813.3,1813.2,9.17876497]
[1680403949535,1.44611197,1813.4,1813.2,9.17876497]
[1680403949738,0.86771497,1813.4,1813.3,5.19246575]
[1680403950035,1.44605581,1813.4,1813.3,5.19246575]
[1680403951637,0.86771497,1813.4,1813.3,5.19246575]
[1680403952833,1.44599518,1813.4,1813.3,5.19246575]
[1680403953532,0.57828021,1813.4,1813.3,5.19246575]
[1680403954239,1.44599518,1813.4,1813.3,5.19246575]
[1680403954443,0.57828021,1813.4,1813.3,5.19246575]
[1680403955238,1.44599518,1813.4,1813.3,5.19246575]
[1680403955442,0.57828021,1813.4,1813.3,5.19246575]
[1680403955736,1.44599518,1813.4,1813.3,4.36446575]
[1680403955941,0.86771497,1813.4,1813.3,4.36446575]
[1680403957040,1.68771497,1813.4,1813.3,4.36446575]
[1680403961952,0.86771497,1813.4,1813.3,5.19246575]
[1680403962252,0.57830972,1813.5,1813.4,0.0044712]
[1680403962546,0.57830972,1813.5,1813.4,8.78534059]
[1680403963146,1.44602469,1813.6,1813.4,8.78534059]
[1680403963347,1.44602469,1813.6,1813.5,3.7078]
[1680403963745,0.86771497,1813.6,1813.5,4.57446872]
[1680403963942,1.44583536,1813.6,1813.5,3.7078]
[1680403964548,0.57812039,1813.6,1813.5,4.57443527]
[1680403964740,0.57812039,1813.6,1813.5,4.07443527]
[1680403965146,1.44583536,1813.6,1813.5,4.07443527]
[1680403965547,0.86771497,1813.6,1813.5,4.07443527]
[1680403966550,1.44567353,1813.6,1813.5,4.07443527]
[1680403967252,1.43843531,1813.6,1813.5,4.07443527]
[1680403967454,0.86047675,1813.6,1813.5,4.07443527]
[1680403968041,1.43843586,1813.6,1813.5,4.07443527]
[1680403969450,0.57795911,1813.6,1813.5,4.3636321]
[1680403969952,0.57795911,1813.6,1813.5,3.2078]
[1680403970259,0.57795911,1813.6,1813.5,4.0743983]
[1680403970461,0.57795911,1813.6,1813.5,4.07426002]
[1680403982559,0.57795911,1813.6,1813.5,3.2078]
[1680403982761,0.57795911,1813.6,1813.5,4.07443493]
[1680403982956,0.57795911,1813.6,1813.5,3.2078]
[1680403983163,0.57795911,1813.6,1813.5,4.07444196]
[1680403983762,0.57795911,1813.6,1813.5,4.57441884]
[1680403983963,0.57795911,1813.6,1813.5,3.7078]
[1680403984160,0.57795911,1813.6,1813.5,4.57442025]
[1680403986064,0.57795911,1813.6,1813.5,4.07442025]
[1680403987262,0.57795911,1813.6,1813.5,4.07445689]
[1680403989167,0.57795911,1813.7,1813.5,3.2078]
[1680403989372,0.824,1813.8,1813.6,1.44424071]
[1680403989667,0.5777769,1813.7,1813.6,5.15202908]
[1680403989877,0.5777769,1813.7,1813.6,4.07434443]
[1680403990167,0.5777769,1813.7,1813.6,4.65199925]
[1680403990368,0.5777769,1813.7,1813.6,4.07434443]
[1680403990762,0.824,1813.8,1813.6,4.65192817]
[1680403991163,0.57776963,1813.7,1813.6,4.65192817]
[1680403991366,0.57776567,1813.7,1813.6,4.65192817]
[1680403991572,0.5,1813.7,1813.6,3.78538374]
[1680403992277,2.48108676,1813.8,1813.6,3.78538374]
[1680403992671,2.48108676,1813.8,1813.6,4.65192817]
[1680403992976,2.48108676,1813.8,1813.6,3.78538374]
[1680403994575,1.98108676,1813.8,1813.6,3.78538374]
[1680403994779,1.98108676,1813.8,1813.6,4.65192817]
[1680403995779,0.57781651,1813.7,1813.6,4.07434443]
[1680403997171,1.40581651,1813.7,1813.6,4.07434443]
[1680403998583,0.828,1813.7,1813.6,4.07434443]
[1680403998883,1.40587212,1813.7,1813.6,4.07434443]
[1680404000079,0.828,1813.7,1813.6,4.07434443]
[1680404006378,0.828,1813.7,1813.6,3.2078]
[1680404006987,0.828,1813.7,1813.6,4.3636321]
[1680404007581,0.828,1813.7,1813.6,3.2078]
[1680404008275,1.98508676,1813.7,1813.6,3.2078]
[1680404008880,1.98508676,1813.7,1813.6,0.86769847]
[1680404009175,2.48408676,1813.7,1813.6,0.86769847]
[1680404016686,1.98408676,1813.7,1813.6,0.86769847]
[1680404020190,1.98408676,1813.7,1813.6,4.07549847]
[1680404020390,1.98408676,1813.7,1813.6,0.86769847]
[1680404021193,1.98408676,1813.7,1813.6,4.07549847]
[1680404021397,1.98408676,1813.7,1813.6,0.86769847]
[1680404021893,1.98408676,1813.7,1813.6,4.07549847]
[1680404022084,1.98408676,1813.7,1813.6,0.86769847]
[1680404022886,1.98408676,1813.7,1813.6,4.07549847]
[1680404023297,1.98408676,1813.7,1813.6,0.86769847]